[Event "*** Titled Tuesday Blitz"]
[Site "Chess.com"]
[Date "2019.06.04"]
[Round "2"]
[White "albano87"]
[Black "yuki_chess123"]
[Result "1-0"]
[WhiteElo "2182"]
[BlackElo "2151"]
[TimeControl "180+2"]
[EndTime "13:22:55 PDT"]
[Termination "albano87 won by resignation"]

1. Nf3 {[%clk 0:02:07.7]} 1... g6 {[%clk 0:03:01.9]} 2. d4 {[%clk 0:01:59.8]}
2... Bg7 {[%clk 0:03:02.8]} 3. g3 {[%clk 0:02:01.2]} 3... Nf6 {[%clk 0:03:03.1]}
4. Bg2 {[%clk 0:02:02]} 4... O-O {[%clk 0:03:04.6]} 5. O-O {[%clk 0:02:03.4]}
5... d6 {[%clk 0:03:05.6]} 6. a4 {[%clk 0:02:04]} 6... Nbd7 {[%clk 0:03:06.1]}
7. Nc3 {[%clk 0:02:03.7]} 7... e5 {[%clk 0:03:03.3]} 8. e4 {[%clk 0:01:57.1]}
8... Re8 {[%clk 0:03:02.6]} 9. Re1 {[%clk 0:01:57.5]} 9... exd4 {[%clk
0:02:56.2]} 10. Nxd4 {[%clk 0:01:59.4]} 10... Nc5 {[%clk 0:02:57.1]} 11. h3
{[%clk 0:01:54.4]} 11... a5 {[%clk 0:02:57.5]} 12. Bf4 {[%clk 0:01:42.1]} 12...
Nh5 {[%clk 0:02:52.4]} 13. Be3 {[%clk 0:01:42.8]} 13... Bd7 {[%clk 0:02:49.9]}
14. Qd2 {[%clk 0:01:43.4]} 14... Qc8 {[%clk 0:02:49.6]} 15. Kh2 {[%clk
0:01:43.6]} 15... Nf6 {[%clk 0:02:50]} 16. Bg5 {[%clk 0:01:44.1]} 16... Ra6
{[%clk 0:02:12.7]} 17. Bh6 {[%clk 0:01:40.5]} 17... Bxh6 {[%clk 0:02:03.8]} 18.
Qxh6 {[%clk 0:01:40]} 18... Re5 {[%clk 0:02:04.8]} 19. Qf4 {[%clk 0:01:16.2]}
19... Rh5 {[%clk 0:02:01.3]} 20. Qxf6 {[%clk 0:01:14.6]} 20... Bxh3 {[%clk
0:02:00]} 21. Nd5 {[%clk 0:00:57.9]} 21... Be6+ {[%clk 0:01:06.1]} 22. Kg1
{[%clk 0:00:55.5]} 22... Bxd5 {[%clk 0:01:07.2]} 23. exd5 {[%clk 0:00:57.1]}
23... Ra8 {[%clk 0:01:05.4]} 24. Re7 {[%clk 0:00:55.7]} 24... Qf8 {[%clk
0:01:05.1]} 25. Rae1 {[%clk 0:00:54.5]} 25... Rc8 {[%clk 0:01:00]} 26. Bf3
{[%clk 0:00:52.2]} 26... Re5 {[%clk 0:00:57]} 27. R1xe5 {[%clk 0:00:50.5]} 27...
dxe5 {[%clk 0:00:57.7]} 28. Qxe5 {[%clk 0:00:52.4]} 28... Ne6 {[%clk 0:00:53.1]}
29. Rxe6 {[%clk 0:00:49.4]} 29... fxe6 {[%clk 0:00:53.5]} 30. Bg4 {[%clk
0:00:50.9]} 30... h5 {[%clk 0:00:25.3]} 31. Qxe6+ {[%clk 0:00:31.7]} 1-0

[Event "*** Titled Tuesday Blitz"]
[Site "Chess.com"]
[Date "2019.06.04"]
[Round "2"]
[White "JMatias"]
[Black "TastyFrenchFries"]
[Result "0-1"]
[WhiteElo "2421"]
[BlackElo "2448"]
[TimeControl "180+2"]
[EndTime "13:22:57 PDT"]
[Termination "TastyFrenchFries won by resignation"]

1. c4 {[%clk 0:03:01.9]} 1... Nf6 {[%clk 0:02:58.5]} 2. g3 {[%clk 0:03:02.8]}
2... e6 {[%clk 0:03:00.4]} 3. Bg2 {[%clk 0:03:03.2]} 3... Be7 {[%clk 0:03:01.6]}
4. Nf3 {[%clk 0:03:05.1]} 4... d6 {[%clk 0:03:03]} 5. O-O {[%clk 0:03:07]} 5...
c6 {[%clk 0:03:04.3]} 6. d4 {[%clk 0:03:07.1]} 6... b6 {[%clk 0:03:05]} 7. Nc3
{[%clk 0:03:03.9]} 7... Bb7 {[%clk 0:02:55.6]} 8. e4 {[%clk 0:03:04.5]} 8... O-O
{[%clk 0:02:51.8]} 9. d5 {[%clk 0:03:04.1]} 9... cxd5 {[%clk 0:02:51.1]} 10.
cxd5 {[%clk 0:03:03.4]} 10... e5 {[%clk 0:02:51.1]} 11. h3 {[%clk 0:02:54.8]}
11... Nbd7 {[%clk 0:02:48.8]} 12. Be3 {[%clk 0:02:51.7]} 12... a6 {[%clk
0:02:47.6]} 13. b4 {[%clk 0:02:51.2]} 13... Rb8 {[%clk 0:02:46.3]} 14. Qd3
{[%clk 0:02:43.7]} 14... Rc8 {[%clk 0:02:45.1]} 15. Rfc1 {[%clk 0:02:43.7]}
15... g6 {[%clk 0:02:42.5]} 16. a4 {[%clk 0:02:37.5]} 16... Ne8 {[%clk
0:02:39.3]} 17. g4 {[%clk 0:02:36.7]} 17... Ng7 {[%clk 0:02:38.1]} 18. Bh6
{[%clk 0:02:35.9]} 18... Kh8 {[%clk 0:02:37.6]} 19. Qd2 {[%clk 0:02:20.5]} 19...
Nf6 {[%clk 0:02:37.4]} 20. Be3 {[%clk 0:02:12.1]} 20... Rc4 {[%clk 0:02:29.9]}
21. Bf1 {[%clk 0:02:02.4]} 21... Nxe4 {[%clk 0:02:28.9]} 22. Nxe4 {[%clk
0:02:00.4]} 22... Rxe4 {[%clk 0:02:30.8]} 23. Bd3 {[%clk 0:01:59.9]} 23... Rxe3
{[%clk 0:02:31.7]} 24. fxe3 {[%clk 0:01:57.1]} 24... Bxd5 {[%clk 0:02:29.3]} 25.
e4 {[%clk 0:01:58.2]} 25... Be6 {[%clk 0:02:27.4]} 26. Qc2 {[%clk 0:01:55]}
26... f5 {[%clk 0:02:27.1]} 27. gxf5 {[%clk 0:01:53.8]} 27... gxf5 {[%clk
0:02:29]} 28. Qc7 {[%clk 0:01:49]} 28... fxe4 {[%clk 0:02:27.8]} 29. Qxd8 {[%clk
0:01:48]} 29... Rxd8 {[%clk 0:02:25.4]} 30. Bxe4 {[%clk 0:01:49]} 30... d5
{[%clk 0:02:25.8]} 31. Bc2 {[%clk 0:01:42.9]} 31... Bf6 {[%clk 0:02:16]} 32.
Rab1 {[%clk 0:01:33.2]} 32... e4 {[%clk 0:02:15.3]} 33. Nd2 {[%clk 0:01:25.9]}
33... Bxh3 {[%clk 0:02:09.5]} 34. Nb3 {[%clk 0:01:20.3]} 34... Nf5 {[%clk
0:02:03.4]} 35. Kh2 {[%clk 0:01:18]} 35... Bg4 {[%clk 0:02:04.4]} 36. Rg1 {[%clk
0:01:18.8]} 36... h5 {[%clk 0:02:01.6]} 37. Rbf1 {[%clk 0:01:18]} 37... Be5+
{[%clk 0:01:59.9]} 38. Kh1 {[%clk 0:01:12.6]} 38... Ng3+ {[%clk 0:01:55.7]} 39.
Rxg3 {[%clk 0:01:11]} 39... Bxg3 {[%clk 0:01:57.6]} 40. Kg2 {[%clk 0:01:05.6]}
40... h4 {[%clk 0:01:55.3]} 41. Nd4 {[%clk 0:01:04.9]} 41... Kg7 {[%clk
0:01:48.3]} 42. Nf5+ {[%clk 0:01:02.7]} 42... Bxf5 {[%clk 0:01:47.3]} 43. Rxf5
{[%clk 0:01:04.6]} 43... Kg6 {[%clk 0:01:46.5]} 44. Rf1 {[%clk 0:01:01.6]} 44...
Rc8 {[%clk 0:01:42.1]} 45. Bb1 {[%clk 0:00:59.6]} 45... Kg5 {[%clk 0:01:40.2]}
46. Rc1 {[%clk 0:00:59.5]} 46... Rxc1 {[%clk 0:01:02.6]} 0-1

[Event "*** Titled Tuesday Blitz"]
[Site "Chess.com"]
[Date "2019.06.04"]
[Round "2"]
[White "Spring199"]
[Black "pedro_gines"]
[Result "0-1"]
[WhiteElo "2217"]
[BlackElo "2402"]
[TimeControl "180+2"]
[EndTime "13:23:05 PDT"]
[Termination "pedro_gines won by resignation"]

1. d4 {[%clk 0:03:01.9]} 1... Nf6 {[%clk 0:02:58.6]} 2. c4 {[%clk 0:03:02.5]}
2... d6 {[%clk 0:02:55.1]} 3. Nc3 {[%clk 0:03:02.4]} 3... e5 {[%clk 0:02:56.1]}
4. dxe5 {[%clk 0:02:58.4]} 4... dxe5 {[%clk 0:02:58]} 5. Qxd8+ {[%clk 0:02:57]}
5... Kxd8 {[%clk 0:02:59.9]} 6. Bg5 {[%clk 0:02:57.8]} 6... c6 {[%clk
0:02:54.4]} 7. O-O-O+ {[%clk 0:02:57.7]} 7... Kc7 {[%clk 0:02:55.3]} 8. Nf3
{[%clk 0:02:56.9]} 8... Nfd7 {[%clk 0:02:47.9]} 9. Nxe5 {[%clk 0:02:49.8]} 9...
f6 {[%clk 0:02:21.1]} 10. Nxd7 {[%clk 0:02:33.5]} 10... fxg5 {[%clk 0:02:01.4]}
11. Nxf8 {[%clk 0:02:33.4]} 11... Rxf8 {[%clk 0:02:01.7]} 12. f3 {[%clk
0:02:31.9]} 12... g4 {[%clk 0:02:01.4]} 13. h3 {[%clk 0:02:22.3]} 13... gxh3
{[%clk 0:01:47.4]} 14. gxh3 {[%clk 0:02:22.8]} 14... Be6 {[%clk 0:01:47]} 15. b3
{[%clk 0:02:12.7]} 15... Nd7 {[%clk 0:01:34.7]} 16. Ne4 {[%clk 0:02:11.8]} 16...
a5 {[%clk 0:01:24.9]} 17. h4 {[%clk 0:02:08.9]} 17... a4 {[%clk 0:01:24.7]} 18.
Kb2 {[%clk 0:02:09.1]} 18... Ne5 {[%clk 0:01:17.3]} 19. Ng5 {[%clk 0:02:06.8]}
19... Bg8 {[%clk 0:01:13.6]} 20. Bh3 {[%clk 0:02:05.9]} 20... h6 {[%clk
0:01:10.6]} 21. Ne4 {[%clk 0:02:02.7]} 21... a3+ {[%clk 0:00:41.9]} 22. Kc3
{[%clk 0:02:00.6]} 22... Rae8 {[%clk 0:00:41]} 23. Rhg1 {[%clk 0:01:56.3]} 23...
Nxf3 {[%clk 0:00:16]} 24. Rxg7+ {[%clk 0:01:52]} 24... Kb8 {[%clk 0:00:14.4]}
25. Nd6 {[%clk 0:01:40.2]} 25... Re3+ {[%clk 0:00:13.2]} 26. Rd3 {[%clk
0:01:40.3]} 26... Rxe2 {[%clk 0:00:13]} 27. Rxb7+ {[%clk 0:01:39.9]} 27... Ka8
{[%clk 0:00:14]} 28. Rb4 {[%clk 0:01:32.6]} 28... Ne1 {[%clk 0:00:11.6]} 29.
Ra4+ {[%clk 0:01:24.8]} 29... Kb8 {[%clk 0:00:12.4]} 30. Rxa3 {[%clk 0:01:17.4]}
30... Rc2+ {[%clk 0:00:11.1]} 31. Kb4 {[%clk 0:01:15.2]} 31... Nxd3+ {[%clk
0:00:10.4]} 32. Ka5 {[%clk 0:01:15.5]} 32... Rd8 {[%clk 0:00:09.7]} 33. Ne4
{[%clk 0:01:09.9]} 33... Kc7 {[%clk 0:00:10.4]} 34. Nc5 {[%clk 0:01:05.3]} 34...
Nxc5 {[%clk 0:00:10.5]} 35. Kb4 {[%clk 0:01:02.8]} 35... Nd3+ {[%clk 0:00:11.1]}
0-1

[Event "*** Titled Tuesday Blitz"]
[Site "Chess.com"]
[Date "2019.06.04"]
[Round "2"]
[White "mouseWLZ"]
[Black "Sebastian"]
[Result "1-0"]
[WhiteElo "2678"]
[BlackElo "2876"]
[TimeControl "180+2"]
[EndTime "13:23:07 PDT"]
[Termination "mouseWLZ won by resignation"]

1. d4 {[%clk 0:03:01.2]} 1... Nf6 {[%clk 0:03:00.4]} 2. Bf4 {[%clk 0:03:01.9]}
2... e6 {[%clk 0:03:01]} 3. e3 {[%clk 0:03:02.3]} 3... d5 {[%clk 0:03:02.4]} 4.
Nf3 {[%clk 0:03:03]} 4... Bd6 {[%clk 0:03:04]} 5. Bg3 {[%clk 0:03:03.6]} 5...
O-O {[%clk 0:03:04.6]} 6. Nbd2 {[%clk 0:03:04.8]} 6... c5 {[%clk 0:03:05.9]} 7.
c3 {[%clk 0:03:05.7]} 7... Qc7 {[%clk 0:03:06.7]} 8. Bxd6 {[%clk 0:02:51.8]}
8... Qxd6 {[%clk 0:03:07.6]} 9. Be2 {[%clk 0:02:51.3]} 9... Nbd7 {[%clk
0:03:07]} 10. O-O {[%clk 0:02:51.8]} 10... b6 {[%clk 0:03:08.1]} 11. a4 {[%clk
0:02:51.9]} 11... Bb7 {[%clk 0:03:08]} 12. a5 {[%clk 0:02:52.9]} 12... Qc7
{[%clk 0:02:55.5]} 13. Qa4 {[%clk 0:02:50.9]} 13... Bc6 {[%clk 0:02:48.9]} 14.
Qa3 {[%clk 0:02:45]} 14... Rfb8 {[%clk 0:02:30.5]} 15. b4 {[%clk 0:02:22.9]}
15... c4 {[%clk 0:02:31.3]} 16. axb6 {[%clk 0:02:21]} 16... axb6 {[%clk
0:02:30.8]} 17. Qb2 {[%clk 0:02:21.6]} 17... Ba4 {[%clk 0:01:56.1]} 18. h3
{[%clk 0:02:19.5]} 18... h6 {[%clk 0:01:53.3]} 19. Rfe1 {[%clk 0:02:20.3]} 19...
Ra7 {[%clk 0:01:47.7]} 20. Bf1 {[%clk 0:02:17.3]} 20... Rba8 {[%clk 0:01:47.5]}
21. Ra3 {[%clk 0:02:13.4]} 21... Ne8 {[%clk 0:01:38.4]} 22. Rea1 {[%clk
0:02:12.8]} 22... Nd6 {[%clk 0:01:39.2]} 23. g3 {[%clk 0:02:10.6]} 23... Bc6
{[%clk 0:01:29.8]} 24. Rxa7 {[%clk 0:02:09.2]} 24... Rxa7 {[%clk 0:01:30.9]} 25.
Ne5 {[%clk 0:02:02.2]} 25... Rxa1 {[%clk 0:01:12.6]} 26. Qxa1 {[%clk 0:02:02.3]}
26... Nxe5 {[%clk 0:01:14.3]} 27. dxe5 {[%clk 0:02:01.9]} 27... Nb5 {[%clk
0:01:04]} 28. f4 {[%clk 0:02:02.6]} 28... Qa7 {[%clk 0:01:03.7]} 29. Qxa7 {[%clk
0:01:58.7]} 29... Nxa7 {[%clk 0:01:05.6]} 30. Nf3 {[%clk 0:01:59.6]} 30... Ba4
{[%clk 0:01:04.1]} 31. Nd4 {[%clk 0:01:59.3]} 31... Nb5 {[%clk 0:01:03.2]} 32.
Nxb5 {[%clk 0:01:59.1]} 32... Bxb5 {[%clk 0:01:05.1]} 33. Kf2 {[%clk 0:01:59.4]}
33... Ba4 {[%clk 0:01:06.3]} 34. e4 {[%clk 0:01:59.4]} 34... d4 {[%clk
0:00:39.5]} 35. cxd4 {[%clk 0:02:00]} 35... c3 {[%clk 0:00:40.6]} 36. Ke3 {[%clk
0:02:00]} 36... Kf8 {[%clk 0:00:41.2]} 37. Bc4 {[%clk 0:01:59.7]} 37... Bc2
{[%clk 0:00:35.2]} 38. d5 {[%clk 0:01:56.9]} 38... Bxe4 {[%clk 0:00:35.5]} 39.
d6 {[%clk 0:01:51.7]} 39... Ke8 {[%clk 0:00:35.5]} 40. Bd3 {[%clk 0:01:44.8]}
40... c2 {[%clk 0:00:24.4]} 41. Bb5+ {[%clk 0:01:45.2]} 41... Kd8 {[%clk
0:00:25.9]} 42. Kd2 {[%clk 0:01:46.5]} 42... f6 {[%clk 0:00:23.7]} 43. Ba4
{[%clk 0:01:46.7]} 43... fxe5 {[%clk 0:00:23.7]} 44. fxe5 {[%clk 0:01:47.8]}
44... Bg2 {[%clk 0:00:13.6]} 45. h4 {[%clk 0:01:48.2]} 45... Bh3 {[%clk
0:00:13.4]} 46. Bxc2 {[%clk 0:01:48]} 46... Bg4 {[%clk 0:00:13.5]} 47. Bd3
{[%clk 0:01:48.6]} 47... Bh3 {[%clk 0:00:14.5]} 48. Kc3 {[%clk 0:01:49.6]} 48...
Bg4 {[%clk 0:00:15.3]} 49. Kc4 {[%clk 0:01:50.7]} 49... Kc8 {[%clk 0:00:12.7]}
50. Kb5 {[%clk 0:01:50]} 50... Kb7 {[%clk 0:00:13.8]} 51. Be4+ {[%clk
0:01:50.7]} 1-0

[Event "*** Titled Tuesday Blitz"]
[Site "Chess.com"]
[Date "2019.06.04"]
[Round "2"]
[White "Berardino"]
[Black "csati17"]
[Result "1-0"]
[WhiteElo "2557"]
[BlackElo "2509"]
[TimeControl "180+2"]
[EndTime "13:23:07 PDT"]
[Termination "Berardino won by resignation"]

1. e4 {[%clk 0:03:01.9]} 1... e6 {[%clk 0:03:01.3]} 2. d4 {[%clk 0:03:02.5]}
2... d5 {[%clk 0:03:02.7]} 3. Nd2 {[%clk 0:03:02.2]} 3... Nf6 {[%clk 0:03:03.9]}
4. e5 {[%clk 0:03:03.2]} 4... Nfd7 {[%clk 0:03:05.6]} 5. f4 {[%clk 0:03:04.7]}
5... c5 {[%clk 0:03:07.5]} 6. Ngf3 {[%clk 0:03:05.9]} 6... Nc6 {[%clk 0:03:09]}
7. Nb3 {[%clk 0:03:07]} 7... Qb6 {[%clk 0:03:04.1]} 8. c3 {[%clk 0:03:00.7]}
8... cxd4 {[%clk 0:02:58.4]} 9. Nbxd4 {[%clk 0:02:54]} 9... Nxd4 {[%clk
0:02:55.7]} 10. cxd4 {[%clk 0:02:54]} 10... Bb4+ {[%clk 0:02:52]} 11. Bd2 {[%clk
0:02:54.9]} 11... a5 {[%clk 0:02:53.9]} 12. Bd3 {[%clk 0:02:54.8]} 12... a4
{[%clk 0:02:32.7]} 13. a3 {[%clk 0:02:40.1]} 13... Bxd2+ {[%clk 0:02:29.7]} 14.
Qxd2 {[%clk 0:02:39.4]} 14... Qb3 {[%clk 0:02:10.2]} 15. O-O {[%clk 0:02:34]}
15... Nb6 {[%clk 0:02:02.3]} 16. Rac1 {[%clk 0:02:04.7]} 16... Bd7 {[%clk
0:01:40.9]} 17. Rc3 {[%clk 0:01:59.4]} 17... Qa2 {[%clk 0:01:41.8]} 18. f5
{[%clk 0:01:12.7]} 18... Nc4 {[%clk 0:01:16.2]} 19. Bxc4 {[%clk 0:01:08.8]}
19... dxc4 {[%clk 0:01:18.1]} 20. f6 {[%clk 0:00:52.3]} 20... Bc6 {[%clk
0:00:56.7]} 21. Ng5 {[%clk 0:00:32.6]} 21... gxf6 {[%clk 0:00:49.8]} 22. exf6
{[%clk 0:00:21]} 22... Rg8 {[%clk 0:00:46.8]} 23. Rg3 {[%clk 0:00:21.3]} 23...
h6 {[%clk 0:00:37.5]} 24. Qb4 {[%clk 0:00:20.3]} 24... Kd7 {[%clk 0:00:31.9]}
25. Nxf7 {[%clk 0:00:21]} 25... Kc7 {[%clk 0:00:23.7]} 26. Ne5 {[%clk
0:00:20.4]} 26... Rxg3 {[%clk 0:00:22.4]} 27. hxg3 {[%clk 0:00:21.5]} 27... Rg8
{[%clk 0:00:18.6]} 28. f7 {[%clk 0:00:20.2]} 28... Rxg3 {[%clk 0:00:19.4]} 29.
Nxc6 {[%clk 0:00:21.4]} 1-0

[Event "*** Titled Tuesday Blitz"]
[Site "Chess.com"]
[Date "2019.06.04"]
[Round "2"]
[White "vohiraa"]
[Black "LastHeroJr"]
[Result "0-1"]
[WhiteElo "2325"]
[BlackElo "2506"]
[TimeControl "180+2"]
[EndTime "13:23:07 PDT"]
[Termination "LastHeroJr won on time"]

1. e4 {[%clk 0:03:01.9]} 1... Nc6 {[%clk 0:03:00.9]} 2. Nf3 {[%clk 0:02:58.5]}
2... d6 {[%clk 0:03:02]} 3. d4 {[%clk 0:02:59]} 3... Nf6 {[%clk 0:03:03.1]} 4.
Nc3 {[%clk 0:02:59.7]} 4... g6 {[%clk 0:03:04.4]} 5. Be2 {[%clk 0:02:58.5]} 5...
Bg7 {[%clk 0:03:05.7]} 6. O-O {[%clk 0:03:00.1]} 6... O-O {[%clk 0:03:06.8]} 7.
h3 {[%clk 0:03:01.6]} 7... e5 {[%clk 0:03:08]} 8. d5 {[%clk 0:03:02.5]} 8... Ne7
{[%clk 0:03:07.5]} 9. a4 {[%clk 0:02:29.7]} 9... c6 {[%clk 0:03:05.1]} 10. dxc6
{[%clk 0:02:26.9]} 10... bxc6 {[%clk 0:03:07]} 11. b3 {[%clk 0:02:27.4]} 11...
Qc7 {[%clk 0:02:53.3]} 12. Ba3 {[%clk 0:02:26.8]} 12... Rd8 {[%clk 0:02:54.8]}
13. Qe1 {[%clk 0:02:12.4]} 13... Nh5 {[%clk 0:02:52.2]} 14. Rd1 {[%clk
0:02:08.1]} 14... Nf4 {[%clk 0:02:49.1]} 15. Bc4 {[%clk 0:02:04.8]} 15... Be6
{[%clk 0:02:41.6]} 16. Qd2 {[%clk 0:01:40.4]} 16... d5 {[%clk 0:02:30.4]} 17.
exd5 {[%clk 0:01:38.7]} 17... cxd5 {[%clk 0:02:31]} 18. Nb5 {[%clk 0:01:38.1]}
18... Qd7 {[%clk 0:02:12.7]} 19. Be2 {[%clk 0:01:25.3]} 19... Bxh3 {[%clk
0:01:53.3]} 20. gxh3 {[%clk 0:01:05.1]} 20... Qxh3 {[%clk 0:01:46.8]} 21. Ne1
{[%clk 0:01:06.3]} 21... Nf5 {[%clk 0:01:42]} 22. Bf3 {[%clk 0:00:47.2]} 22...
Nh4 {[%clk 0:01:38.7]} 23. Qe3 {[%clk 0:00:35]} 23... Bh6 {[%clk 0:01:14.7]} 24.
Bg2 {[%clk 0:00:21.3]} 24... Qg4 {[%clk 0:01:14.3]} 25. f3 {[%clk 0:00:18.6]}
25... Qg3 {[%clk 0:01:05.3]} 26. Kh1 {[%clk 0:00:09.6]} 26... Nhxg2 {[%clk
0:01:02.7]} 27. Qg1 {[%clk 0:00:06.7]} 27... a6 {[%clk 0:00:30.7]} 28. Nc7
{[%clk 0:00:06.3]} 28... Rac8 {[%clk 0:00:27.7]} 0-1

[Event "*** Titled Tuesday Blitz"]
[Site "Chess.com"]
[Date "2019.06.04"]
[Round "2"]
[White "GMKrikor"]
[Black "LonesomeGeorge1"]
[Result "1-0"]
[WhiteElo "2718"]
[BlackElo "2355"]
[TimeControl "180+2"]
[EndTime "13:23:10 PDT"]
[Termination "GMKrikor won by resignation"]

1. e4 {[%clk 0:03:01.9]} 1... c6 {[%clk 0:03:01]} 2. d4 {[%clk 0:03:00.8]} 2...
d5 {[%clk 0:03:02.2]} 3. Nc3 {[%clk 0:03:01.5]} 3... dxe4 {[%clk 0:03:02.9]} 4.
Nxe4 {[%clk 0:03:02.5]} 4... Nf6 {[%clk 0:03:03.3]} 5. Nxf6+ {[%clk 0:02:51.6]}
5... exf6 {[%clk 0:03:05.2]} 6. c3 {[%clk 0:02:50]} 6... Bd6 {[%clk 0:03:05.8]}
7. Bd3 {[%clk 0:02:51.1]} 7... O-O {[%clk 0:03:06.5]} 8. Qc2 {[%clk 0:02:50.5]}
8... h5 {[%clk 0:03:06.4]} 9. Ne2 {[%clk 0:02:50.8]} 9... h4 {[%clk 0:03:00.9]}
10. Bd2 {[%clk 0:02:51.3]} 10... Be6 {[%clk 0:02:54.9]} 11. O-O {[%clk
0:02:50.6]} 11... a5 {[%clk 0:02:47.8]} 12. c4 {[%clk 0:02:49.3]} 12... Na6
{[%clk 0:02:47.6]} 13. a3 {[%clk 0:02:50.1]} 13... Re8 {[%clk 0:02:43.6]} 14. h3
{[%clk 0:02:48.2]} 14... Nc7 {[%clk 0:02:33.9]} 15. Be3 {[%clk 0:02:45.2]} 15...
Qd7 {[%clk 0:02:22.5]} 16. Rfe1 {[%clk 0:02:06.6]} 16... Bxh3 {[%clk 0:01:44]}
17. gxh3 {[%clk 0:01:58.3]} 17... Qxh3 {[%clk 0:01:43.2]} 18. Bf5 {[%clk
0:01:51.1]} 18... Qh2+ {[%clk 0:01:37.3]} 19. Kf1 {[%clk 0:01:51.8]} 19... h3
{[%clk 0:01:01.6]} 20. Be4 {[%clk 0:01:46.7]} 20... Re6 {[%clk 0:00:44.9]} 21.
Bf3 {[%clk 0:01:45.6]} 21... Rae8 {[%clk 0:00:43.9]} 22. Qf5 {[%clk 0:01:36.5]}
22... g6 {[%clk 0:00:16.6]} 23. Qg4 {[%clk 0:01:35.4]} 23... f5 {[%clk
0:00:16.1]} 24. Qh4 {[%clk 0:01:32.3]} 24... f6 {[%clk 0:00:15.5]} 25. Ng1
{[%clk 0:01:32.6]} 25... g5 {[%clk 0:00:14.6]} 26. Qxh3 {[%clk 0:01:33.9]} 26...
Qxh3+ {[%clk 0:00:15.6]} 27. Nxh3 {[%clk 0:01:35.7]} 27... g4 {[%clk 0:00:17.2]}
28. Nf4 {[%clk 0:01:33.4]} 28... gxf3 {[%clk 0:00:15.9]} 29. Nxe6 {[%clk
0:01:34.4]} 29... Nxe6 {[%clk 0:00:16.1]} 30. d5 {[%clk 0:01:31.6]} 30... cxd5
{[%clk 0:00:16.5]} 31. cxd5 {[%clk 0:01:33]} 31... Ng7 {[%clk 0:00:15.6]} 32.
Bd4 {[%clk 0:01:31]} 32... Be5 {[%clk 0:00:14.1]} 33. d6 {[%clk 0:01:27.5]}
33... Kf7 {[%clk 0:00:13.6]} 34. Rad1 {[%clk 0:01:27.1]} 34... Rd8 {[%clk
0:00:13.7]} 35. Bxe5 {[%clk 0:01:27.5]} 35... fxe5 {[%clk 0:00:15.6]} 36. Rxe5
{[%clk 0:01:28.2]} 36... Kf6 {[%clk 0:00:17.5]} 37. Rxa5 {[%clk 0:01:27.2]}
37... Ne6 {[%clk 0:00:16.7]} 38. Rb5 {[%clk 0:01:27.5]} 38... Rh8 {[%clk
0:00:17.7]} 39. Ke1 {[%clk 0:01:27]} 39... Ng5 {[%clk 0:00:17.2]} 40. Kd2 {[%clk
0:01:26.5]} 40... Ne4+ {[%clk 0:00:17.9]} 41. Ke3 {[%clk 0:01:27.3]} 41... Kg5
{[%clk 0:00:17.7]} 42. Rg1+ {[%clk 0:01:26]} 42... Kf6 {[%clk 0:00:17.2]} 43.
Kxf3 {[%clk 0:01:26.6]} 43... Rd8 {[%clk 0:00:18]} 44. Rd1 {[%clk 0:01:25.3]}
44... Rd7 {[%clk 0:00:18.1]} 45. Kf4 {[%clk 0:01:22.6]} 45... Ng5 {[%clk
0:00:17.8]} 46. Rxf5+ {[%clk 0:01:22.8]} 1-0